bitfinex/quotes_ETHUSD_20250904
["timestamp","ask_amount","ask_price","bid_price","bid_amount"]
[1756958821002,1.3567,4402.8,4400.8,2.27231412]
[1756958821003,0.1136,4401.9,4401.3,0.1136]
[1756958821206,0.2898,4401.4,4400.7,3.369]
[1756958821418,0.4292,4402.4,4400.8,5.4529]
[1756958821708,0.4292,4402.4,4401.0,3.792]
[1756958821995,0.4552,4402.8,4402.7,2.27133349]
[1756958822211,0.026,4402.8,4402.7,6.20733349]
[1756958822383,0.026,4402.8,4402.7,6.32093349]
[1756958822713,0.026,4402.8,4402.7,8.14686915]
[1756958823611,0.026,4402.8,4402.7,7.11293349]
[1756958823815,1.2431,4402.8,4402.7,7.11293349]
[1756958824108,1.2431,4402.8,4402.7,6.32093349]
[1756958824278,0.026,4402.8,4402.7,7.11293349]
[1756958826387,1.2431,4402.8,4402.7,4.0466]
[1756958826590,1.2431,4402.8,4402.7,6.31793349]
[1756958826789,1.2431,4402.8,4402.7,2.38493349]
[1756958827109,0.026,4402.8,4402.7,6.31493349]
[1756958827331,0.026,4402.8,4402.7,7.24829944]
[1756958828798,0.026,4402.8,4402.7,8.04029944]
[1756958829980,1.2431,4402.8,4402.7,4.0436]
[1756958830207,1.2431,4402.8,4402.7,0.1136]
[1756958830383,1.2431,4402.8,4402.7,3.5386]
[1756958830584,0.026,4402.8,4402.7,6.19633349]
[1756958830885,0.026,4402.8,4402.7,6.30993349]
[1756958831784,0.3158,4402.8,4402.7,6.30993349]
[1756958832000,1.2431,4402.8,4402.7,4.0406]
[1756958832818,3.62798191,4402.8,4402.7,3.453]
[1756958833104,3.62798191,4402.8,4402.7,3.928]
[1756958833281,1.3567,4402.8,4402.0,0.1136]
[1756958833489,2.27133349,4402.7,4402.1,3.927]
[1756958833697,0.2898,4402.2,4402.1,3.927]
[1756958834001,1.2171,4402.2,4402.1,3.927]
[1756958834192,1.2171,4402.2,4402.0,0.1136]
[1756958834392,0.2898,4402.2,4402.1,3.927]
[1756958835002,1.2171,4402.2,4402.1,3.927]
[1756958840824,0.2898,4402.2,4402.1,3.927]
[1756958841019,0.48168814,4402.4,4402.1,4.2277]
[1756958841201,0.026,4402.8,4402.7,2.27133349]
[1756958841405,0.026,4402.8,4402.7,8.04893349]
[1756958842409,0.026,4402.8,4402.7,8.91701019]
[1756958842913,0.001,4404.1,4402.7,10.05781019]
[1756958843232,0.4981,4406.9,4404.9,3.06219909]
[1756958843525,0.4981,4407.4,4404.9,23.99919909]
[1756958843691,0.4981,4407.4,4405.7,3.06178686]
[1756958843892,0.4981,4407.4,4405.7,8.78348472]
[1756958844194,0.4981,4407.4,4405.7,8.27048686]
[1756958844195,0.4292,4407.1,4405.7,8.27048686]
[1756958844402,0.4981,4407.0,4405.8,0.792]
[1756958844702,0.4981,4407.0,4405.9,0.21163791]
[1756958844887,0.4981,4407.0,4406.0,4.16963791]
[1756958845087,0.4981,4407.0,4406.6,2.26930565]
[1756958845289,0.4981,4407.0,4406.7,4.16963791]
[1756958845489,0.9273,4406.9,4406.8,4.16863791]
[1756958845689,1.2171,4406.9,4406.8,4.16863791]
[1756958846404,1.2171,4406.9,4406.8,3.957]
[1756958848806,0.2898,4406.9,4406.8,3.957]
[1756958849010,1.2171,4406.9,4406.8,3.951]
[1756958849813,0.2898,4406.9,4406.8,3.951]
[1756958850314,1.2023,4406.9,4406.8,3.951]
[1756958850914,3.4714688,4406.9,4406.8,3.951]
[1756958851130,1.2023,4406.9,4406.8,3.951]
[1756958852011,3.4724688,4406.9,4406.8,3.951]
[1756958852318,1.2033,4406.9,4406.8,3.951]
[1756958853245,1.3169,4406.9,4406.8,3.951]
[1756958853729,0.4044,4406.9,4406.8,3.951]
[1756958853898,0.001,4406.9,4406.8,3.951]
[1756958854725,0.001,4406.9,4406.8,6.52152029]
[1756958855614,0.001,4406.9,4406.8,7.57520346]
[1756958855791,0.001,4406.9,4406.8,8.01450346]
[1756958856440,0.001,4406.9,4406.8,8.47400346]
[1756958857225,0.001,4406.9,4406.8,8.03470346]
[1756958857530,0.001,4406.9,4406.8,8.47400346]
[1756958858096,0.001,4406.9,4406.8,8.01450346]
[1756958858295,0.001,4406.9,4406.8,7.57520346]
[1756958859412,0.001,4406.9,4406.8,8.47400346]
[1756958859593,0.001,4406.9,4406.8,9.26600346]
[1756958861603,0.001,4406.9,4406.8,8.35220346]
[1756958861823,0.001,4406.9,4406.8,8.35120346]
[1756958862337,0.001,4406.9,4406.8,9.25000346]
[1756958862736,0.001,4406.9,4406.8,12.25000346]
[1756958863250,0.001,4406.9,4406.8,11.35120346]
[1756958864239,0.001,4406.9,4406.8,12.25000346]
[1756958864845,0.001,4406.9,4406.8,12.36360346]
[1756958866530,0.001,4406.9,4406.8,8.42860346]
[1756958866730,0.001,4406.9,4406.8,11.45980346]
[1756958866926,0.001,4406.9,4406.8,12.35860346]
[1756958868758,1e-08,4407.8,4407.7,3.06075694]
[1756958868959,1e-08,4407.8,4407.7,30.61369405]
[1756958869134,1e-08,4407.8,4407.7,31.90470649]
[1756958870567,1e-08,4407.8,4407.7,8.22443263]
[1756958870729,1e-08,4407.8,4407.7,12.15643263]
[1756958871640,1e-08,4407.8,4407.7,7.43243263]
[1756958871842,0.28590001,4407.8,4407.7,7.43243263]
[1756958872044,0.73430001,4407.8,4407.7,11.36343263]
[1756958872365,0.28590001,4407.8,4407.7,12.15543263]
[1756958873167,0.28590001,4407.8,4407.7,8.22443263]
[1756958873380,1.19840001,4407.8,4407.7,12.15443263]
[1756958874175,1e-08,4407.8,4407.7,12.45573263]
[1756958874351,1e-08,4407.8,4407.7,12.80163263]
[1756958874679,1e-08,4407.8,4407.7,14.34093263]
[1756958877976,1e-08,4407.8,4407.7,9.51213263]
[1756958878177,1e-08,4407.8,4407.7,9.21083263]
[1756958878376,1e-08,4407.8,4407.7,13.13383263]
[1756958878677,1e-08,4407.8,4407.7,13.43513263]
[1756958878974,1e-08,4407.8,4407.7,13.13383263]
[1756958880087,0.025,4409.8,4407.7,13.13383263]
[1756958880088,1e-08,4409.8,4409.7,2.26772796]
[1756958880250,1e-08,4409.8,4409.7,5.75]
[1756958880582,0.29980001,4409.8,4409.7,8.01772796]
[1756958880783,1.25640001,4409.8,4409.7,8.01772796]
[1756958881573,1.25640001,4409.8,4409.7,5.75]
[1756958884684,1.25640001,4409.8,4409.7,1.744]
[1756958884888,1.25640001,4409.8,4409.7,5.756]
[1756958884889,3.52407654,4409.8,4409.7,5.756]
[1756958885088,1.25640001,4409.8,4409.7,5.756]
[1756958886760,3.52407654,4409.8,4409.7,1.744]
[1756958886959,3.52407654,4409.8,4409.7,5.752]
[1756958886960,3.63767654,4409.8,4409.7,5.752]
[1756958887790,1.37100001,4409.8,4409.7,5.752]
[1756958891065,3.63867654,4409.8,4409.7,5.752]
[1756958891261,3.63867654,4409.8,4409.7,1.744]
[1756958891575,1.37100001,4409.8,4409.7,5.738]
[1756958892792,3.63867654,4409.8,4409.7,5.738]
[1756958894608,3.63867654,4409.8,4409.7,5.735]
[1756958895098,3.63867654,4409.8,4409.7,5.732]
[1756958895584,10.65867654,4409.8,4409.7,5.732]
[1756958895909,10.65867654,4409.8,4409.7,1.744]
[1756958896103,10.65867654,4409.8,4409.7,5.732]
[1756958897604,10.65867654,4409.8,4409.7,5.727]
[1756958900514,7.13460001,4409.8,4409.7,5.727]
[1756958900879,7.02100001,4409.8,4409.7,5.727]
[1756958902102,8.27740001,4409.8,4409.7,5.727]
[1756958902612,7.02100001,4409.8,4409.7,6.0345]
[1756958902776,7.02100001,4409.8,4409.7,5.727]
[1756958902979,7.78000001,4409.8,4409.7,5.727]
[1756958904408,1.25740001,4409.8,4409.7,1.744]
[1756958904607,1.25740001,4409.8,4409.7,5.718]
[1756958904608,0.49840001,4409.8,4409.7,5.718]
[1756958904804,0.49840001,4409.8,4409.7,1.744]
[1756958905112,0.79820001,4409.8,4409.7,1.744]
[1756958905315,0.30080001,4409.8,4409.7,5.717]
[1756958905483,1.25740001,4409.8,4409.7,5.717]
[1756958905974,0.79820001,4409.8,4409.7,5.716]
[1756958906180,0.00100001,4409.8,4409.7,5.716]
[1756958906697,0.30080001,4409.8,4409.7,5.716]
[1756958907801,0.00100001,4409.8,4409.7,6.5955]
[1756958908110,0.00100001,4409.8,4409.7,9.30292796]
[1756958908285,0.00100001,4409.8,4409.7,9.33212796]
[1756958908487,0.00100001,4409.8,4409.7,9.77182796]
[1756958909015,0.00100001,4409.8,4409.7,2.6235]
[1756958909193,0.00100001,4409.8,4409.7,5.716]
[1756958909394,0.30080001,4409.8,4409.7,5.716]
[1756958909602,0.76000001,4409.8,4409.7,5.716]
[1756958909820,0.76000001,4409.8,4409.7,5.92853331]
[1756958910024,0.30080001,4409.8,4409.7,5.92853331]
[1756958910612,0.30080001,4409.8,4409.7,1.95653331]
[1756958910813,1.19430001,4409.8,4409.7,5.92653331]
[1756958910997,1.19430001,4409.8,4409.7,1.95653331]
[1756958911529,3.46197654,4409.8,4409.7,5.92553331]
[1756958911729,3.46197654,4409.8,4409.7,4.18153331]
[1756958913732,3.46197654,4409.8,4409.7,4.49383331]
[1756958913733,0.00100001,4409.8,4409.7,4.49383331]
[1756958914031,0.02,4410.1,4410.0,3.05957369]
[1756958914198,0.02,4410.1,4410.0,8.9834477]
[1756958914399,0.02,4410.1,4410.0,7.02817401]
[1756958914611,0.021,4410.3,4410.0,2.71087401]
[1756958914817,0.021,4410.3,4410.1,0.21253331]
[1756958915023,0.021,4410.3,4410.2,0.21253331]
[1756958917534,0.021,4410.3,4410.2,2.79230417]
[1756958917741,0.021,4410.3,4410.2,0.21253331]
[1756958917942,0.021,4410.3,4410.2,4.21253331]
[1756958918118,0.021,4410.3,4410.2,6.48000417]
[1756958918625,0.021,4410.3,4410.2,4.21253331]
[1756958918830,0.3194,4410.3,4410.2,4.21253331]
[1756958919612,0.3194,4410.3,4410.2,0.21253331]
[1756958919813,0.7713,4410.3,4410.2,0.21253331]
[1756958920012,1.2129,4410.3,4410.2,4.20853331]
[1756958920843,1.2129,4410.3,4410.2,0.21253331]
[1756958921044,1.2129,4410.3,4410.2,4.20653331]
[1756958921544,1.2129,4410.3,4410.2,0.21253331]
[1756958921743,1.2129,4410.3,4410.2,4.20653331]
[1756958921961,0.021,4410.3,4410.2,7.8657575]
[1756958922113,0.021,4410.3,4410.2,8.3011575]
[1756958922313,0.021,4410.3,4410.2,8.39202043]
[1756958922734,0.021,4410.3,4410.2,9.18402043]
[1756958922971,0.001,4410.7,4410.6,2.26726522]
[1756958923178,0.001,4410.7,4410.6,13.7302591]
[1756958923358,0.001,4410.7,4410.6,4.1654591]
[1756958923558,0.001,4410.7,4410.6,8.1624591]
[1756958923958,0.001,4410.7,4410.6,15.0760591]
[1756958925654,0.001,4410.7,4410.6,15.16690986]
[1756958929681,1e-08,4410.8,4410.7,3.05921382]
[1756958929897,1e-08,4410.8,4410.7,3.99643812]
[1756958930050,1e-08,4410.8,4410.7,4.30873812]
[1756958930251,1e-08,4410.8,4410.7,11.10873812]
[1756958931265,1e-08,4410.8,4410.7,12.82063812]
[1756958931662,1e-08,4410.8,4410.7,12.9114829]
[1756958933103,1e-08,4410.8,4410.7,15.9114829]
[1756958933400,1e-08,4410.8,4410.7,7.4782243]
[1756958933697,1.19190001,4410.8,4410.7,5.96153331]
[1756958933858,3.45906242,4410.8,4410.7,0.21253331]
[1756958934574,6.45906242,4410.8,4410.7,0.21253331]
[1756958934755,5.26721382,4410.7,4410.6,4.035]
[1756958934963,2.26746944,4410.3,4409.8,0.025]
[1756958935181,2.26746944,4410.3,4409.9,4.24463641]
[1756958935367,0.8935,4410.2,4410.0,0.21163641]
[1756958935585,0.8935,4410.2,4410.1,4.24463641]
[1756958935895,1.1919,4410.2,4410.1,4.24463641]
[1756958936497,3.45937086,4410.2,4410.1,4.24463641]
[1756958936656,1.1919,4410.2,4410.1,0.21163641]
[1756958936860,1.1919,4410.2,4410.1,4.24263641]
[1756958937688,3.45937086,4410.2,4410.1,0.21163641]
[1756958938087,6.45937086,4410.2,4410.1,0.21163641]
[1756958939120,6.45937086,4410.2,4410.1,0.21563641]
[1756958939324,6.45937086,4410.2,4410.1,0.21564874]
[1756958939721,6.57297086,4410.2,4410.1,0.21564874]
[1756958940492,6.57297086,4410.2,4410.1,0.004]
[1756958945422,6.13137086,4410.2,4410.1,0.004]
[1756958945612,6.56727086,4410.2,4410.1,0.004]
[1756958946933,3.1136,4410.2,4410.1,0.004]
[1756958947135,0.001,4410.7,4410.1,0.51816617]
[1756958947433,0.001,4410.7,4410.2,0.21146617]
[1756958947637,0.001,4410.7,4410.3,0.21146617]
[1756958947802,0.001,4410.7,4410.4,0.21146617]
[1756958948002,0.001,4410.7,4410.5,0.21146617]
[1756958948321,0.001,4410.7,4410.6,0.21146617]
[1756958950031,0.001,4410.7,4410.6,0.51416617]
[1756958950236,0.001,4410.7,4410.6,0.21146617]
[1756958951237,0.001,4410.7,4410.6,2.78143139]
[1756958951644,0.001,4410.7,4410.6,6.81010404]
[1756958951822,0.001,4410.7,4410.6,4.52016617]
[1756958952139,0.001,4410.7,4410.6,7.2594729]
[1756958952340,0.001,4410.7,4410.6,7.58349611]
[1756958952634,0.001,4410.7,4410.6,8.04549611]
[1756958953514,0.001,4410.7,4410.6,4.52010768]
[1756958953860,0.001,4410.7,4410.6,0.97610768]
[1756958954154,1e-08,4410.8,4410.7,0.792]
[1756958954311,0.001,4411.2,4411.1,2.26700822]
[1756958954509,0.001,4411.2,4411.1,7.27319509]
[1756958954706,0.001,4411.2,4411.1,7.25052501]
[1756958954906,0.001,4411.2,4411.1,8.18462501]
[1756958955210,0.001,4411.2,4411.1,3.23452501]
[1756958955415,0.001,4411.2,4411.1,6.7951159]
[1756958956444,0.001,4411.2,4411.1,2.7811159]
[1756958956653,0.001,4411.2,4411.1,6.7921159]
[1756958957163,0.001,4411.2,4411.1,6.9047159]
[1756958957516,0.001,4411.2,4411.1,3.8288159]
[1756958957722,0.001,4411.2,4411.1,8.47107586]
[1756958958032,0.001,4411.2,4411.1,8.44840578]
[1756958959034,0.001,4411.2,4411.1,8.44833154]
[1756958959765,0.001,4411.2,4411.1,7.51423154]
[1756958959928,0.001,4411.2,4411.1,8.44833154]
[1756958961827,0.001,4411.2,4411.1,7.97623154]
[1756958962050,0.001,4411.2,4411.1,8.44833154]
[1756958965031,0.025,4412.8,4411.2,0.792]
[1756958965269,0.1136,4412.6,4412.1,2.2664506]
[1756958965444,0.2939,4412.2,4412.1,2.2664506]
[1756958965643,0.2939,4412.2,4412.1,0.21102212]
[1756958965848,1.2103,4412.2,4412.1,4.21804649]
[1756958966242,0.025,4412.8,4412.7,2.26618623]
[1756958966444,0.025,4412.8,4412.7,9.01923272]
[1756958966661,0.025,4412.8,4412.7,10.25603272]
[1756958966862,0.025,4412.8,4412.7,17.53653272]
[1756958967564,0.025,4412.8,4412.7,8.74373272]
[1756958968261,0.025,4412.8,4412.7,8.26023272]
[1756958968466,0.3189,4412.8,4412.7,8.26023272]
[1756958968632,0.3189,4412.8,4412.7,4.22023272]
[1756958968837,1.2353,4412.8,4412.7,8.25890312]
[1756958969032,1.2353,4412.8,4412.7,5.99271689]
[1756958969433,1.2353,4412.8,4412.7,1.95371689]
[1756958969651,1.2353,4412.8,4412.7,5.99171689]
[1756958969863,1.2353,4412.8,4412.7,1.95371689]
[1756958970068,1.2353,4412.8,4412.7,5.99071689]
[1756958971641,0.025,4412.8,4412.7,11.10109843]
[1756958971946,0.025,4412.8,4412.7,10.18739843]
[1756958972150,0.025,4412.8,4412.7,16.98739843]
[1756958972354,0.025,4412.8,4412.7,17.92009843]
[1756958972552,0.025,4413.8,4412.7,17.92009843]
[1756958972553,0.025,4413.8,4413.7,2.26567279]
[1756958972746,0.025,4413.8,4413.7,8.27438968]
[1756958975189,0.025,4413.8,4413.7,9.60700733]
[1756958975368,0.025,4413.8,4413.7,11.33170733]
[1756958975744,0.314,4413.8,4413.7,0.21071689]
[1756958975942,1.2211,4413.8,4413.7,0.21071689]
[1756958976150,0.314,4413.8,4413.7,0.21071689]
[1756958976444,1.2211,4413.8,4413.7,0.21071689]
[1756958976774,1.2211,4413.8,4412.7,1.742]
[1756958976775,5.26567279,4413.7,4412.9,4.07]
[1756958976959,2.26577861,4413.5,4413.0,0.21071689]
[1756958977161,0.4758,4413.6,4413.1,0.21071689]
[1756958977475,0.4758,4413.6,4412.7,1.742]
[1756958977476,0.9071,4413.6,4413.2,4.28471689]
[1756958977779,0.025,4413.8,4413.7,2.26567279]
[1756958977977,0.025,4413.8,4413.7,8.32238968]
[1756958978180,0.025,4413.8,4413.7,12.90678968]
[1756958978389,0.025,4413.8,4413.7,13.34088968]
[1756958982082,0.025,4413.8,4413.7,12.84228968]
[1756958982292,0.025,4413.8,4413.7,14.89759351]
[1756958982584,0.025,4413.8,4413.7,15.39619351]
[1756958983994,0.025,4413.8,4413.7,14.96209351]
[1756958984162,0.025,4415.8,4415.7,3.0566466]
[1756958984368,0.025,4415.8,4415.7,8.85950056]
[1756958984549,1.2211,4415.8,4415.7,1.95271689]
[1756958984896,6.48569531,4415.8,4415.7,0.21071689]
[1756958985080,1.2211,4415.8,4415.7,4.02771689]
[1756958985588,0.7898,4415.8,4415.7,4.02771689]
[1756958985796,3.59929531,4415.8,4415.7,0.21071689]
[1756958986091,3.0,4415.7,4415.6,1.533]
[1756958986376,0.9071,4415.7,4415.6,1.533]
[1756958986542,1.1961,4415.7,4415.6,1.74357987]
[1756958986970,6.4607466,4415.7,4415.6,1.74357987]
[1756958987264,4.1961,4415.7,4415.6,1.74357987]
[1756958987465,1.1961,4415.7,4415.6,1.74357987]
[1756958988248,0.7648,4415.7,4415.6,1.74357987]
[1756958988448,1.1961,4415.7,4415.6,1.74357987]
[1756958989367,3.4607466,4415.7,4415.6,0.21057987]
[1756958989578,3.4607466,4415.7,4415.6,4.10857987]
[1756958989754,3.4607466,4415.7,4415.6,0.21057987]
[1756958989946,2.26474917,4415.5,4415.4,5.373]
[1756958990151,3.57444917,4415.5,4415.4,5.58370002]
[1756958990551,3.57444917,4415.5,4415.4,0.21070002]
[1756958990750,3.57444917,4415.5,4415.1,4.123]
[1756958990751,1.3097,4415.5,4415.1,4.123]
[1756958990948,2.26485176,4415.3,4415.2,0.21078253]
[1756958991376,3.46095176,4415.3,4415.2,0.21078253]
[1756958991574,3.57455176,4415.3,4415.2,0.21078253]
[1756958992284,2.26490306,4415.2,4415.1,4.123]
[1756958992457,0.001,4415.7,4415.2,0.1136]
[1756958992656,0.001,4415.7,4415.3,4.32897683]
[1756958992989,0.9071,4415.6,4415.4,0.21097683]
[1756958993285,0.289,4415.5,4415.3,4.118]
[1756958993483,0.001,4415.7,4415.4,0.21101378]
[1756958993687,0.001,4415.7,4415.5,0.21101378]
[1756958993995,0.001,4415.7,4415.6,0.21101378]
[1756958994199,0.001,4415.7,4415.6,3.13508635]
[1756958994386,0.001,4415.7,4415.6,5.30613332]
[1756958994565,0.001,4415.7,4415.6,5.28348635]
[1756958995197,0.001,4415.7,4415.6,2.06561378]
[1756958995388,0.001,4415.7,4415.6,6.19161378]
[1756958995578,0.001,4415.7,4415.6,8.45631166]
[1756958996406,1.1971,4415.7,4415.6,6.07501378]
[1756958997882,0.025,4415.8,4415.7,1.39950138]
[1756958998186,0.025,4415.8,4415.7,0.81851516]
[1756958998385,0.025,4415.8,4415.7,2.47566038]
[1756958998588,0.7453,4415.8,4415.7,4.33501378]
[1756958998768,1.2211,4415.8,4415.7,4.33501378]
[1756959003079,0.7453,4415.8,4415.7,4.33501378]
[1756959003283,1.2173,4415.8,4415.7,4.33501378]
[1756959004609,0.025,4415.8,4415.7,4.66826176]
[1756959004789,0.025,4415.8,4415.7,7.50516176]
[1756959005174,0.025,4415.8,4415.7,9.21056176]
[1756959007298,0.001,4416.6,4416.5,2.26423638]
[1756959007500,0.001,4416.6,4416.5,8.34025016]
[1756959007712,0.001,4416.6,4416.5,9.40070647]
[1756959007899,0.001,4416.6,4416.5,9.51430647]
[1756959010317,0.001,4416.6,4416.5,2.06561378]
[1756959010521,0.3046,4416.6,4416.5,6.18361378]
[1756959010822,0.7699,4416.6,4416.5,6.18361378]
[1756959010989,1.2419,4416.6,4416.5,4.32985016]
[1756959011316,1.2419,4416.6,4416.5,1.95201378]
[1756959011517,1.2419,4416.6,4416.5,4.25301378]
[1756959011518,1.3555,4416.6,4416.5,4.25301378]
[1756959011678,3.61968511,4416.6,4416.5,0.21101378]
[1756959011878,3.61968511,4416.6,4416.5,3.22401378]
[1756959012111,3.61968511,4416.6,4416.5,0.21101378]
[1756959012685,3.61968511,4416.6,4415.0,4.111]
[1756959012686,3.0,4416.3,4415.0,4.111]
[1756959012898,0.3036,4415.1,4415.0,4.111]
[1756959013078,1.2409,4415.1,4415.0,4.32252176]
[1756959013801,3.50585436,4415.1,4415.0,4.32552176]
[1756959013982,3.50585436,4415.1,4415.0,0.21152176]
[1756959015109,6.50585436,4415.1,4415.0,0.21152176]
[1756959015276,1.2409,4415.1,4414.8,0.029]
[1756959015482,0.9373,4415.0,4414.9,4.32042562]
[1756959015690,1.2409,4415.0,4414.9,4.32042562]
[1756959016489,0.4653,4416.1,4414.9,4.32042562]
[1756959016689,0.68192446,4416.6,4415.0,0.21142562]
[1756959016690,2.73670257,4415.6,4415.0,0.21142562]
[1756959016893,2.73670257,4415.6,4415.1,0.21142562]
[1756959017186,0.9373,4415.5,4415.2,4.32242562]
[1756959017493,0.9373,4415.5,4415.3,0.21142562]
[1756959017813,2.26474917,4415.5,4415.4,0.21142562]
[1756959018307,2.56834917,4415.5,4415.4,0.21142562]
[1756959018818,3.50564917,4415.5,4415.4,0.21142562]
[1756959019905,2.2648319,4415.4,4415.2,4.111]
[1756959020230,3.20210047,4415.4,4415.3,0.21134808]
[1756959020420,2.26480047,4415.4,4415.3,0.21134808]
[1756959020585,0.001,4416.7,4415.3,2.69348289]
[1756959020779,0.001,4416.7,4415.4,0.21134808]
[1756959021009,0.001,4416.7,4415.5,0.21134808]
[1756959021196,0.001,4416.7,4415.6,4.33134808]
[1756959021394,2.26429751,4416.4,4415.7,0.21134808]
[1756959021603,2.26429751,4416.4,4415.8,0.21134808]
[1756959021787,2.26429751,4416.4,4415.9,0.21134808]
[1756959022111,2.26434232,4416.3,4416.0,4.32934808]
[1756959022316,2.73629631,4416.4,4416.1,0.21134808]
[1756959022613,0.4653,4416.3,4416.2,0.21134808]
[1756959022778,0.5789,4416.3,4416.2,0.21134808]
[1756959022982,3.14683892,4416.3,4416.2,0.21134808]
[1756959023196,0.8825,4416.3,4416.2,0.21134808]
[1756959024415,0.4172,4416.3,4416.2,0.21134808]
[1756959024585,2.26470908,4415.6,4415.3,1.741]
[1756959024785,0.9373,4415.5,4415.4,4.32039703]
[1756959024990,3.61924917,4415.5,4415.4,0.21139703]
[1756959025230,3.61924917,4415.5,4415.4,4.32139703]
[1756959026004,3.15394917,4415.5,4415.4,4.32139703]
[1756959026206,0.4172,4415.5,4415.4,4.32139703]
[1756959026518,0.1136,4415.5,4415.4,4.32139703]
[1756959027382,3.61924917,4415.5,4415.4,0.21139703]
[1756959027587,2.26492757,4415.2,4414.9,4.31339507]
[1756959027791,3.20225436,4415.1,4415.0,0.21139507]
[1756959027996,3.50585436,4415.1,4415.0,0.21139507]
[1756959028213,3.61945436,4415.1,4415.0,0.21139507]
[1756959028393,0.8892,4415.1,4415.0,0.21139507]
[1756959028583,0.4172,4415.1,4415.0,0.21139507]
[1756959028788,0.8825,4415.1,4415.0,0.21139507]
[1756959029698,0.1136,4415.1,4415.0,0.21139507]
[1756959031116,2.66785436,4415.1,4415.0,0.21139507]
[1756959031319,3.58105436,4415.1,4415.0,0.21139507]
[1756959031528,3.58105436,4415.1,4415.0,4.30739507]
[1756959031731,3.58105436,4415.1,4415.0,4.096]
[1756959032916,2.26505696,4414.9,4414.7,4.091]
[1756959033229,2.26505696,4414.9,4414.8,0.24031411]
[1756959033434,3.46755696,4414.9,4414.8,0.24031411]
[1756959033605,3.02945696,4414.9,4414.8,0.24031411]
[1756959033806,0.2893,4414.9,4414.8,0.24031411]
[1756959034006,2.2650104,4415.0,4414.8,0.24031411]
[1756959034218,0.1136,4415.1,4414.8,0.029]
[1756959034424,2.55435696,4414.9,4414.8,0.029]
[1756959034620,2.55435696,4414.9,4414.8,0.24025454]
[1756959035909,2.99245696,4414.9,4414.8,0.24025454]
[1756959036109,2.55435696,4414.9,4414.8,0.24025454]
[1756959037733,2.26505696,4414.9,4414.8,0.24025454]
[1756959038535,2.99245696,4414.9,4414.8,0.24025454]
[1756959039135,2.55435696,4414.9,4414.8,0.24025454]
[1756959040246,2.26505696,4414.9,4414.8,0.24025454]
[1756959042139,2.26501193,4415.0,4414.8,0.24025454]
[1756959042344,2.26500566,4415.0,4414.9,4.27625454]
[1756959042644,2.55430566,4415.0,4414.9,4.27625454]
[1756959043341,0.1136,4415.0,4414.9,5.90947999]
[1756959043548,7.02,4415.5,4415.0,2.26496852]
[1756959043745,7.1336,4415.5,4415.4,0.2958]
[1756959043925,0.4029,4415.5,4415.4,4.27325454]
[1756959044261,0.4029,4415.5,4415.4,4.27225454]
[1756959044262,2.66764917,4415.5,4415.4,4.27225454]
[1756959044463,0.4029,4415.5,4415.4,4.27225454]
[1756959045351,2.66764917,4415.5,4415.4,4.27225454]
[1756959045515,3.10574917,4415.5,4415.4,4.27225454]
[1756959045715,3.58084917,4415.5,4415.4,4.27225454]
[1756959045944,0.4029,4415.5,4415.4,4.27225454]
[1756959046615,0.1136,4415.5,4415.4,4.27225454]
[1756959046822,0.4029,4415.5,4415.4,4.27225454]
[1756959047723,0.1136,4415.5,4415.4,4.27225454]
[1756959048258,0.4029,4415.5,4415.4,0.21125454]
[1756959048421,0.1136,4415.5,4415.4,0.21125454]
[1756959048621,2.66764917,4415.5,4415.4,0.21125454]
[1756959049230,0.4029,4415.5,4415.4,0.21125454]
[1756959050866,2.66764917,4415.5,4415.4,0.21125454]
[1756959051161,0.1136,4415.5,4415.4,0.50774019]
[1756959051549,1.3161,4415.5,4415.4,0.21194019]
[1756959052165,3.58084917,4415.5,4415.4,0.21194019]
[1756959052855,2.37834917,4415.5,4415.4,0.21194019]
[1756959053160,3.58084917,4415.5,4415.4,0.21194019]
[1756959054933,2.66764917,4415.5,4415.4,0.21194019]
[1756959057257,0.4029,4415.5,4415.4,0.21194019]
[1756959058642,2.66764917,4415.5,4415.4,0.21194019]
[1756959059093,0.4029,4415.5,4415.4,0.21194019]
[1756959059483,9.81853821,4415.5,4415.4,0.21194019]
[1756959060176,12.08328738,4415.5,4415.4,0.21194019]
[1756959060365,13.03888738,4415.5,4415.4,0.21194019]
[1756959061200,20.05888738,4415.5,4415.4,0.21194019]
[1756959062642,23.05888738,4415.5,4415.4,0.21194019]
[1756959062862,27.08288738,4415.5,4415.4,0.21194019]
[1756959075701,26.12728738,4415.5,4415.4,0.21194019]
[1756959076008,27.08288738,4415.5,4415.4,0.21194019]
[1756959077877,5.26480047,4415.4,4415.3,0.004]
[1756959078078,6.22040047,4415.4,4415.3,0.21619779]
[1756959078402,5.55370047,4415.4,4415.3,0.21619779]
[1756959078995,6.50930047,4415.4,4415.3,0.21619779]
[1756959079507,24.26631298,4415.4,4415.3,0.21619779]
[1756959081308,24.26631298,4415.4,4415.3,0.21621881]
[1756959083202,24.71514591,4415.4,4415.3,0.21621881]
[1756959083576,24.71514591,4415.4,4414.9,0.004]
[1756959083577,2.26500566,4415.0,4414.9,0.004]
[1756959083778,27.11561817,4415.0,4414.9,0.21627442]
[1756959083998,28.36011817,4415.0,4414.9,0.21627442]
[1756959084704,2.26519074,4414.7,4414.4,0.004]
[1756959084875,16.11587471,4414.5,4414.4,0.004]
[1756959085074,16.40477471,4414.5,4414.4,0.004]
[1756959085276,17.36037471,4414.5,4414.4,0.004]
[1756959085711,17.83061251,4414.5,4414.4,0.2904]
[1756959085908,20.09587471,4414.5,4414.4,0.2904]
[1756959086512,16.11587471,4414.5,4414.4,0.2904]
[1756959087115,0.1136,4414.5,4414.4,0.2904]
[1756959087275,10.85061251,4414.5,4414.4,0.2904]
[1756959087474,10.85061251,4414.5,4414.4,0.7876]
[1756959087692,10.85061251,4414.5,4414.4,1.2211]
[1756959090281,0.1136,4414.5,4414.4,1.2354]
[1756959092786,0.1136,4414.5,4414.4,0.7382]
[1756959095413,0.1136,4414.5,4414.4,0.2904]